bitfinex/quotes_ETHUSD_20241116
["timestamp","ask_amount","ask_price","bid_price","bid_amount"]
[1731792251731,0.6637,3153.8,3152.9,3.23511074]
[1731792251959,3.06188591,3154.7,3152.9,3.23511074]
[1731792251960,0.6637,3154.1,3153.6,3.1709]
[1731792252293,3.91723357,3154.8,3153.8,3.17068]
[1731792252294,0.6637,3154.5,3153.8,3.17068]
[1731792252874,0.6637,3154.5,3154.0,3.17057]
[1731792253268,0.6637,3154.5,3153.6,0.804]
[1731792253472,0.6637,3154.5,3154.0,3.1705]
[1731792253783,0.6637,3154.5,3154.1,3.17046]
[1731792254563,1.047059,3154.5,3154.1,3.17046]
[1731792255391,4.41112357,3154.8,3153.7,0.06340988]
[1731792255588,3.83355,3154.8,3154.1,3.17046]
[1731792256387,0.6637,3154.8,3153.6,0.804]
[1731792256614,0.6637,3155.4,3154.1,3.05245676]
[1731792256804,0.6637,3155.4,3154.7,3.16977]
[1731792256805,0.383283,3155.3,3154.7,3.16977]
[1731792256943,0.383283,3155.3,3154.8,3.16974]
[1731792257152,0.383283,3155.3,3154.9,3.16966]
[1731792257340,3.83293,3155.4,3154.7,3.16977]
[1731792257686,0.6637,3155.4,3154.7,3.16977]
[1731792257979,0.6637,3155.4,3154.9,3.16965]
[1731792258383,0.6637,3155.4,3155.0,3.1695]
[1731792258683,0.6637,3155.4,3154.2,3.97433]
[1731792258684,0.6637,3155.7,3154.8,0.804]
[1731792258888,0.616891,3155.6,3154.8,0.804]
[1731792259093,0.6637,3155.7,3155.1,3.16938]
[1731792259405,3.16825,3156.4,3155.6,3.16889]
[1731792259406,0.6637,3156.3,3155.6,3.16889]
[1731792259594,0.6637,3156.3,3155.8,3.16873]
[1731792260294,1.046884,3156.3,3156.0,3.16848]
[1731792260493,3.16767,3156.9,3156.0,3.16848]
[1731792260494,0.6637,3156.6,3156.0,3.16848]
[1731792260643,3.83169,3156.6,3156.0,3.16848]
[1731792260880,3.16816,3156.4,3155.8,3.16875]
[1731792261313,3.83169,3156.6,3155.9,3.16863]
[1731792261492,0.383169,3156.5,3155.9,3.16863]
[1731792261907,0.333169,3156.5,3156.0,3.16855]
[1731792262476,3.501319,3156.5,3155.8,3.16876]
[1731792263027,3.501319,3156.5,3155.7,3.16882]
[1731792263028,3.16827,3156.3,3155.7,3.16882]
[1731792263378,0.333169,3156.5,3155.7,3.16882]
[1731792263379,3.501239,3156.5,3155.8,3.16875]
[1731792264024,3.501239,3156.5,3155.9,3.16866]
[1731792264326,0.6637,3156.6,3156.0,3.16855]
[1731792264327,6.83168,3156.6,3156.0,3.16855]
[1731792264566,6.83168,3156.6,3156.1,3.16845]
[1731792264567,3.6637,3156.6,3156.1,3.16845]
[1731792265259,0.6637,3156.6,3156.1,3.16845]
[1731792265844,0.6637,3156.6,3156.0,3.16847]
[1731792267767,3.83166,3156.6,3155.7,3.16883]
[1731792268059,0.6637,3156.5,3155.3,3.16923]
[1731792268293,0.6637,3156.5,3155.1,3.16944]
[1731792268294,0.6637,3155.7,3155.1,3.1694]
[1731792268724,0.6637,3155.7,3155.2,3.16936]
[1731792269158,3.16903,3155.6,3155.0,3.16957]
[1731792269375,0.383273,3155.6,3154.9,0.7951]
[1731792269509,3.1693,3155.3,3154.7,3.16983]
[1731792270412,3.1693,3155.3,3154.6,0.7951]
[1731792270607,3.16908,3155.5,3154.7,3.16987]
[1731792270861,3.16908,3155.5,3154.9,3.16958]
[1731792273517,3.83257,3155.7,3154.9,3.16958]
[1731792273759,3.83257,3155.7,3155.0,3.16953]
[1731792273918,4.532695,3155.7,3155.0,3.16953]
[1731792274468,0.6637,3156.1,3154.8,3.05245676]
[1731792274667,3.16866,3155.9,3155.2,0.7951]
[1731792274814,3.16866,3155.9,3155.3,3.16925]
[1731792275173,3.83218,3156.1,3155.4,3.16909]
[1731792275520,3.16858,3156.0,3155.3,3.16925]
[1731792275717,3.16858,3156.0,3155.2,0.7951]
[1731792275718,3.16856,3156.0,3155.2,0.7951]
[1731792275918,3.86864,3156.0,3155.1,3.16944]
[1731792276223,3.16883,3155.8,3155.1,3.16944]
[1731792276667,3.86864,3156.0,3155.1,3.16944]
[1731792276820,3.86864,3156.0,3155.3,3.16925]
[1731792277567,3.16884,3155.8,3155.1,3.16944]
[1731792278368,3.16884,3155.8,3155.2,3.16934]
[1731792278537,3.16884,3155.8,3155.1,3.16944]
[1731792278735,3.16884,3155.8,3155.3,3.16926]
[1731792279267,3.16884,3155.8,3155.1,3.16944]
[1731792279430,3.16884,3155.8,3155.2,3.16935]
[1731792282234,3.16884,3155.8,3155.3,3.16925]
[1731792283702,3.16884,3155.8,3155.1,3.16944]
[1731792283703,0.633746,3155.8,3154.9,3.96472]
[1731792283999,3.16917,3155.4,3154.8,3.16976]
[1731792284194,3.16907,3155.5,3154.9,3.16964]
[1731792284785,3.169,3155.6,3154.9,3.16964]
[1731792285286,3.169,3155.6,3155.0,3.16956]
[1731792285487,3.16915,3155.5,3154.9,3.16964]
[1731792286126,3.16917,3155.4,3154.8,3.16976]
[1731792286325,3.16917,3155.4,3154.7,3.16985]
[1731792286326,3.16917,3155.4,3154.7,3.1698]
[1731792286479,3.1693,3155.3,3154.7,3.1698]
[1731792286682,3.1693,3155.3,3154.8,3.16976]
[1731792287118,3.1693,3155.3,3154.7,3.1698]
[1731792287338,3.16914,3155.5,3154.8,3.16977]
[1731792288239,3.16918,3155.4,3154.8,3.16977]
[1731792288746,3.16918,3155.4,3154.6,0.7872]
[1731792288747,3.16975,3154.9,3154.6,0.7872]
[1731792289047,3.16982,3154.8,3154.3,0.7872]
[1731792289270,6.33952,3154.9,3154.3,0.7872]
[1731792289538,3.16986,3154.8,3154.3,0.7872]
[1731792290122,3.16989,3154.7,3154.2,3.17029]
[1731792290496,3.16989,3154.7,3154.1,0.7872]
[1731792290741,6.33985,3154.7,3154.1,0.7872]
[1731792291005,3.16989,3154.7,3154.1,0.7872]
[1731792291375,3.16999,3154.6,3154.1,0.7872]
[1731792291855,3.16989,3154.7,3154.1,0.7872]
[1731792291856,3.16989,3154.7,3154.1,3.95766]
[1731792292269,3.16998,3154.6,3154.1,3.95766]
[1731792293228,3.16984,3154.8,3154.1,3.95766]
[1731792294828,3.16984,3154.8,3154.1,0.7872]
[1731792295141,3.17001,3154.6,3154.1,0.7872]
[1731792295889,3.17001,3154.6,3154.1,3.95767]
[1731792296067,6.723034,3154.8,3154.1,3.95767]
[1731792296237,3.553194,3154.8,3154.1,3.95767]
[1731792296782,3.16984,3154.8,3154.1,3.95767]
[1731792297085,3.16994,3154.7,3154.1,3.95767]
[1731792297963,3.17013,3154.5,3154.1,0.7872]
[1731792298746,3.17013,3154.5,3154.1,0.5372]
[1731792299834,3.17035,3154.3,3154.1,0.5372]
[1731792300192,3.17035,3154.3,3153.5,3.17107]
[1731792300193,0.317035,3154.2,3153.5,3.17107]
[1731792300396,0.317035,3154.2,3153.6,3.17096]
[1731792300680,0.752,3154.4,3153.8,3.17077]
[1731792300993,3.17027,3154.3,3153.6,3.17096]
[1731792301538,3.17027,3154.3,3153.7,3.17087]
[1731792301785,3.17042,3154.2,3153.7,0.7872]
[1731792301932,0.752,3154.4,3153.4,0.7872]
[1731792301933,3.17084,3153.8,3153.4,0.7872]
[1731792302137,3.17062,3154.0,3153.2,3.17135]
[1731792302138,0.752,3153.9,3153.2,3.17135]
[1731792302368,3.1707,3153.9,3153.4,3.17111]
[1731792302692,3.17086,3153.8,3153.2,3.17135]
[1731792303778,3.17086,3153.8,3153.3,3.17127]
[1731792304439,4.314882,3154.0,3153.4,3.17116]
[1731792304638,3.92736,3154.5,3153.5,0.8508177]
[1731792304949,3.92736,3154.5,3153.8,3.17068]
[1731792304950,3.17019,3154.4,3153.8,3.17068]
[1731792305547,3.17028,3154.3,3153.6,6.34184]
[1731792306559,3.92734,3154.5,3153.8,3.17077]
[1731792306765,0.392734,3154.4,3153.9,3.23404979]
[1731792307067,0.392734,3154.4,3154.0,0.7874]
[1731792307789,3.562904,3154.4,3154.0,0.7874]
[1731792307950,0.392734,3154.4,3154.0,0.7874]
[1731792308151,3.16998,3154.6,3154.0,0.85080819]
[1731792308352,3.16991,3154.7,3154.1,3.17046]
[1731792308689,3.92688,3154.9,3154.2,3.17031]
[1731792308890,3.16977,3154.8,3154.2,3.17031]
[1731792309368,0.7572,3154.9,3154.3,3.1702]
[1731792309568,3.16962,3155.0,3154.4,0.7874]
[1731792309791,0.7572,3155.1,3154.6,3.16991]
[1731792310001,3.16921,3155.4,3154.6,3.16989]
[1731792310002,3.92641,3155.4,3154.6,3.16989]
[1731792310203,3.16938,3155.2,3154.6,3.16989]
[1731792311103,0.7572,3155.4,3154.9,0.7874]
[1731792311320,3.16914,3155.5,3154.9,0.85079169]
[1731792311606,0.633814,3155.4,3154.9,0.7874]
[1731792312383,3.16939,3155.2,3154.9,0.7874]
[1731792312564,3.16939,3155.2,3154.6,0.7874]
[1731792313084,3.16919,3155.4,3154.6,0.7874]
[1731792313293,3.16928,3155.3,3154.7,3.16985]
[1731792314316,3.16928,3155.3,3154.7,6.33962]
[1731792314518,3.16928,3155.3,3154.8,3.16977]
[1731792314723,0.7572,3155.7,3155.1,0.7874]
[1731792314872,3.92596,3155.9,3155.3,3.16926]
[1731792315079,0.709443,3155.9,3155.3,3.16926]
[1731792315307,3.878193,3155.9,3155.3,3.16926]
[1731792315570,0.709443,3155.9,3155.4,3.16913]
[1731792315831,3.1683,3156.3,3155.6,0.7874]
[1731792316121,0.7572,3156.5,3155.6,0.7874]
[1731792316122,3.16819,3156.4,3155.6,0.7874]
[1731792316342,3.16835,3156.3,3155.7,3.16885]
[1731792316620,0.316835,3156.2,3155.7,3.16885]
[1731792316828,3.16849,3156.1,3155.6,0.7874]
[1731792316980,0.316835,3156.2,3155.3,0.7874]
[1731792316981,0.7572,3156.0,3155.3,0.7874]
[1731792317335,3.16868,3155.9,3155.3,3.95665]
[1731792317521,3.92586,3156.0,3155.3,3.95665]
[1731792317678,3.16838,3156.2,3155.6,3.16896]
[1731792318027,3.802036,3156.2,3155.7,0.7874]
[1731792318332,3.16876,3155.8,3155.4,0.55]
[1731792318475,3.1688,3155.8,3155.3,0.7874]
[1731792318876,3.16903,3155.6,3155.0,3.95695]
[1731792319117,0.316903,3155.5,3155.0,0.7874]
[1731792319318,3.16917,3155.4,3155.0,0.7874]
[1731792319627,3.16917,3155.4,3154.8,3.95714]
[1731792320529,0.316903,3155.5,3154.9,3.16965]
[1731792321285,3.485983,3155.5,3154.9,3.16965]
[1731792321502,3.8347313,3155.4,3154.8,3.95717]
[1731792321664,3.16929,3155.3,3154.8,0.7874]
[1731792321997,3.92643,3155.4,3154.8,3.95716]
[1731792322198,3.16923,3155.4,3154.9,3.16966]
[1731792322363,0.6655123,3155.4,3155.0,3.1695]
[1731792322770,3.1691,3155.5,3154.8,3.95716]
[1731792323802,0.7572,3155.7,3154.8,0.7874]
[1731792324109,3.16965,3155.0,3154.5,0.805]
[1731792324305,3.16947,3155.1,3154.6,3.16996]
[1731792324453,0.716687,3155.1,3154.6,3.16987]
[1731792324648,3.16921,3155.4,3154.7,3.1698]
[1731792324868,6.33847,3155.4,3154.7,3.1698]
[1731792325151,3.16921,3155.4,3154.7,3.1698]
[1731792325579,3.16927,3155.3,3154.7,3.1698]
[1731792326172,3.16937,3155.2,3154.6,3.16987]
[1731792326366,0.316937,3155.1,3154.6,3.16987]
[1731792328156,3.16919,3155.4,3154.6,3.16987]
[1731792328355,3.16932,3155.3,3154.7,3.16981]
[1731792328817,0.828,3155.5,3154.6,0.55]
[1731792328818,3.16945,3155.2,3154.6,0.55]
[1731792328969,3.16945,3155.2,3154.7,3.16984]
[1731792329282,3.16945,3155.2,3154.6,3.16987]
[1731792329484,3.803312,3155.2,3154.6,3.16987]
[1731792330169,3.803312,3155.2,3154.5,0.805]
[1731792330456,3.16961,3155.0,3154.5,0.805]
[1731792330768,3.16979,3154.8,3154.5,0.805]
[1731792330975,3.16979,3154.8,3154.2,3.93313]
[1731792331282,3.16979,3154.8,3154.3,3.17026]
[1731792331283,0.63394,3154.8,3154.3,3.17026]
[1731792331994,0.63394,3154.8,3154.2,3.93312]
[1731792333076,0.63394,3154.8,3154.3,3.17026]
[1731792333757,0.63394,3154.8,3154.3,3.16456416]
[1731792334907,0.460632,3154.7,3154.2,3.93312]
[1731792335410,0.63394,3154.8,3154.2,3.93312]
[1731792336244,3.80377,3154.8,3154.2,3.93312]
[1731792336800,3.80377,3154.8,3154.0,3.17053]
[1731792337001,3.80377,3154.8,3153.9,0.7628]
[1731792337002,3.17014,3154.5,3153.9,0.7628]
[1731792337203,3.17033,3154.3,3153.7,0.7628]
[1731792337697,1.436712,3154.4,3153.7,0.7628]
[1731792338006,3.97294,3154.4,3153.8,3.17077]
[1731792338163,3.17029,3154.3,3153.8,3.17077]
[1731792340041,3.17049,3154.1,3153.7,0.7628]
[1731792340249,3.487689,3154.0,3153.7,0.7628]
[1731792340543,0.317049,3154.0,3153.5,3.93383]
[1731792340749,0.317049,3154.0,3153.5,3.99724503]
[1731792341045,0.317049,3154.0,3153.5,0.7628]
[1731792341263,3.17085,3153.8,3153.2,0.7628]
[1731792341398,3.171,3153.6,3153.2,0.7628]
[1731792341594,0.8027,3153.9,3153.3,3.1712]
[1731792341798,3.97338,3153.9,3153.3,3.1712]
[1731792342817,0.8027,3153.9,3153.4,3.17109]
[1731792343196,0.8027,3153.9,3153.3,3.23461923]
[1731792344406,1.200031,3153.9,3153.3,3.23461923]
[1731792345012,1.200031,3153.9,3153.3,3.23461919]
[1731792345520,1.200031,3153.9,3153.4,3.17112]
[1731792345850,0.397331,3153.9,3153.4,3.17112]
[1731792346018,0.397331,3153.9,3153.2,0.7628]
[1731792346019,3.568081,3153.9,3153.2,0.7628]
[1731792346208,3.17075,3153.9,3153.2,0.7628]
[1731792346548,0.8008,3154.0,3152.8,0.8104]
[1731792346713,3.97206,3153.4,3152.7,3.17187]
[1731792347097,3.17144,3153.2,3152.6,3.98232]
[1731792347547,3.17153,3153.1,3152.4,3.98253]
[1731792347922,3.17153,3153.1,3152.4,0.8104]
[1731792348127,3.805827,3153.1,3152.5,3.17207]
[1731792348347,0.634297,3153.1,3152.5,3.17207]
[1731792348521,3.17144,3153.2,3152.5,3.17207]
[1731792348698,3.17144,3153.2,3152.6,3.17193]
[1731792349405,3.972,3153.4,3152.8,0.55]
[1731792349653,0.8008,3153.8,3153.3,3.17127]
[1731792349936,0.397155,3153.7,3153.4,0.55]
[1731792350164,0.397155,3153.7,3153.4,3.72108]
[1731792350453,3.17069,3153.9,3153.4,0.55]
[1731792350617,3.98121,3154.0,3153.4,3.72115]
[1731792350820,0.8106,3154.0,3153.4,3.72115]
[1731792351155,1.23923557,3154.0,3153.4,3.72115]
[1731792351410,4.40983557,3154.0,3153.4,3.72115]
[1731792351690,1.23923557,3154.0,3153.5,3.17106]
[1731792352039,4.40982557,3154.0,3153.5,3.17106]
[1731792352261,1.23923557,3154.0,3153.5,3.17106]
[1731792352467,1.23923557,3154.0,3153.4,1.3164]
[1731792352675,3.17073,3153.9,3153.4,1.3164]
[1731792354959,0.8106,3154.0,3153.4,1.3164]
[1731792355166,3.17068,3153.9,3153.4,4.48755]
[1731792355894,3.17068,3153.9,3153.4,3.93755]
[1731792356493,3.17068,3153.9,3153.4,0.7664]
[1731792356694,3.885864,3153.9,3153.3,3.17127]
[1731792357012,3.17095,3153.7,3152.9,3.93808]
[1731792357166,3.98165,3153.6,3152.9,3.93808]
[1731792357364,3.17108,3153.5,3152.9,3.93808]
[1731792357873,0.8106,3153.6,3152.9,0.7664]
[1731792358073,3.98132,3153.9,3153.4,3.17117]
[1731792358259,0.398132,3153.8,3153.4,3.17117]
[1731792358707,0.398132,3153.8,3153.2,3.17136]
[1731792358873,0.398132,3153.8,3153.2,6.34267]
[1731792360200,0.398132,3153.8,3153.2,3.17131]
[1731792360360,0.398132,3153.8,3153.3,3.17121]
[1731792360804,3.98132,3153.9,3153.4,3.17117]
[1731792361014,0.8106,3153.9,3153.4,3.17117]
[1731792361315,9.22257676,3154.5,3153.4,3.17117]
[1731792361316,0.8106,3154.2,3153.5,0.0634189]
[1731792361508,0.8106,3154.2,3153.7,3.17078]
[1731792361660,0.8106,3154.2,3153.5,3.2344489]
[1731792361661,0.398087,3154.1,3153.5,3.17105]
[1731792361857,0.8106,3154.2,3153.5,3.17105]
[1731792362404,3.17048,3154.1,3153.5,3.17105]
[1731792362620,0.8106,3154.2,3153.5,3.23446505]
[1731792362827,0.8106,3154.2,3153.7,3.17079]
[1731792363447,3.98098,3154.2,3153.7,3.17079]
[1731792363588,3.17056,3154.1,3153.5,3.17101]
[1731792363921,1.525728,3154.2,3153.5,3.23442501]
[1731792364139,1.525728,3154.2,3153.8,3.17076]
[1731792364631,0.8167,3154.6,3154.0,3.97086]
[1731792364844,3.9867,3154.6,3154.0,3.97086]
[1731792366125,1.45064,3154.8,3154.0,0.8003]
[1731792366354,1.45064,3154.8,3154.3,3.1702]
[1731792366517,1.45064,3154.8,3154.4,3.17017]
[1731792367728,1.45064,3154.8,3154.3,3.17026]
[1731792367931,0.462032,3154.7,3154.1,3.17043]
[1731792368105,0.462032,3154.7,3154.2,3.17036]
[1731792368301,0.462032,3154.7,3154.1,3.17043]
[1731792368490,0.462032,3154.7,3154.2,3.17037]
[1731792368833,0.462032,3154.7,3154.1,3.17043]
[1731792368987,5.0,3155.0,3154.5,0.8003]
[1731792369193,5.0,3155.0,3154.6,3.16991]
[1731792369393,5.0,3155.0,3154.5,0.8003]
[1731792369735,5.0,3155.0,3154.2,3.97064]
[1731792369887,0.8167,3154.4,3153.8,6.17073]
[1731792370104,1.21538,3154.4,3154.0,3.17053]
[1731792370321,0.8167,3154.4,3154.1,3.17046]
[1731792370700,0.8167,3154.4,3153.9,3.17064]
[1731792370900,3.98688,3154.4,3153.7,0.8003]
[1731792371238,0.8167,3154.7,3154.1,3.17041]
[1731792371734,0.8167,3154.7,3154.1,3.17038]
[1731792371934,0.8167,3154.7,3154.3,3.17025]
[1731792372230,8.16959,3155.0,3154.6,3.16991]
[1731792372231,5.0,3155.0,3154.6,3.16991]
[1731792373538,5.0,3155.0,3154.4,3.17013]
[1731792373539,5.58167,3155.0,3154.4,3.17013]
[1731792373703,5.58167,3155.0,3154.5,3.17006]
[1731792374851,5.58167,3155.0,3154.5,3.17003]
[1731792375341,5.58167,3155.0,3154.3,3.97052]
[1731792375547,3.809517,3154.9,3154.3,3.17022]
[1731792375751,3.809517,3154.9,3154.1,0.8003]
[1731792375903,3.809517,3154.9,3154.3,3.1702]
[1731792376303,3.809517,3154.9,3154.2,3.17037]
[1731792376532,3.16993,3154.7,3154.0,3.17049]
[1731792376716,0.8167,3154.8,3154.0,3.17049]
[1731792376717,3.17005,3154.6,3154.0,3.17049]
[1731792377052,0.8167,3154.5,3153.9,3.17059]
[1731792377347,0.8167,3154.5,3154.1,3.17047]
[1731792377558,0.8167,3154.5,3153.8,0.8003]
[1731792377559,0.8167,3154.5,3154.2,3.17035]
[1731792378434,0.8167,3154.5,3154.0,3.23389754]
[1731792378643,4.0507417,3154.8,3154.2,3.17036]
[1731792378944,1.28575787,3154.7,3154.2,3.17036]
[1731792379451,1.28575787,3154.7,3154.2,3.17031]
[1731792379778,0.8167,3154.7,3154.2,6.34061]
[1731792379979,0.8167,3154.7,3154.2,3.1703]
[1731792380287,0.8167,3154.7,3153.6,3.97118]
[1731792380440,0.8167,3154.2,3153.6,3.97118]
[1731792380636,4.38579,3154.2,3153.6,3.17088]
[1731792381069,1.2154,3154.2,3153.6,3.17088]
[1731792381562,0.8167,3154.2,3153.7,3.17087]
[1731792381766,0.8167,3154.2,3153.6,3.17088]
[1731792382150,0.8167,3154.2,3153.8,3.17071]
[1731792382546,0.8167,3154.2,3153.8,6.34141]
[1731792382749,0.8167,3154.2,3153.8,3.1707]
[1731792383234,3.1699,3154.7,3154.0,0.8007]
[1731792383235,0.8149,3154.7,3154.0,0.8007]
[1731792383440,0.8149,3154.7,3154.4,6.3402]
[1731792383735,0.8149,3154.7,3154.4,3.17009]
[1731792383936,5.8149,3155.0,3154.4,3.17013]
[1731792384136,5.8149,3155.0,3154.6,3.16992]
[1731792384642,5.8149,3155.0,3154.7,3.16986]
[1731792385054,5.8149,3155.0,3154.4,3.17008]
[1731792385268,5.8149,3155.0,3154.7,3.1698]
[1731792385488,6.39639,3155.0,3154.7,3.1698]
[1731792385895,6.39639,3155.0,3154.6,3.16991]
[1731792388978,3.85673607,3155.0,3154.6,3.16991]
[1731792389168,3.27524607,3155.0,3154.6,3.16991]
[1731792389691,3.27524607,3155.0,3154.4,3.17015]
[1731792390207,3.27524607,3155.0,3154.6,3.16991]
[1731792391585,3.27524607,3155.0,3154.8,3.16973]
[1731792391790,3.27524607,3155.0,3154.6,6.33981]
[1731792391991,3.27524607,3155.0,3154.8,3.16974]
[1731792392604,2.46034607,3155.0,3154.9,3.16967]
[1731792393503,2.46034607,3155.0,3154.9,3.97037]
[1731792397544,2.46034607,3155.0,3154.9,3.16967]
[1731792398768,0.8149,3154.9,3154.7,3.16978]
[1731792399131,0.8149,3154.9,3154.2,0.8007]
[1731792399374,0.8149,3154.9,3154.5,3.17003]
[1731792399841,0.8149,3154.9,3154.6,3.16995]
[1731792400242,0.8149,3154.9,3154.5,3.17007]
[1731792400440,1.45937561,3154.9,3154.3,3.17023]
[1731792400648,1.45937561,3154.9,3154.1,3.17044]
[1731792400958,3.16989,3154.7,3154.1,6.34082]
[1731792401273,3.16989,3154.7,3154.1,3.17038]
[1731792401770,0.8149,3154.5,3154.0,3.0]
[1731792402131,0.8149,3154.5,3154.0,6.17051]
[1731792402468,3.98497,3154.5,3154.0,3.0]
[1731792403432,0.8149,3154.5,3154.1,3.17046]
[1731792404015,0.8149,3154.5,3153.9,3.1706]
[1731792404016,3.98499,3154.5,3153.9,3.1706]
[1731792404180,4.74677066,3154.5,3153.9,3.1706]
[1731792404666,1.57668066,3154.5,3154.1,3.17044]
[1731792404996,0.8149,3154.5,3154.1,3.17044]
[1731792405481,0.7841,3154.9,3154.5,3.17001]
[1731792405649,0.7841,3154.9,3154.5,6.34]
[1731792405979,0.7841,3154.9,3154.5,3.16999]
[1731792406483,0.7841,3154.9,3154.7,3.16978]
[1731792406682,0.7841,3154.9,3154.5,3.16999]
[1731792407191,0.7841,3154.9,3154.6,3.16994]
[1731792407494,0.7841,3154.9,3154.7,3.16987]
[1731792407993,0.7841,3154.9,3154.5,3.16999]
[1731792408144,0.7841,3154.9,3154.6,3.16995]
[1731792408353,2.46034607,3155.0,3154.7,3.16978]
[1731792408556,2.46034607,3155.0,3154.5,3.16999]
[1731792408754,2.46034607,3155.0,3154.5,6.34]
[1731792409084,2.46034607,3155.0,3154.7,3.16987]
[1731792410844,2.46034607,3155.0,3154.7,3.11987]
[1731792411051,2.46034607,3155.0,3154.2,3.96313]
[1731792411245,2.46034607,3155.0,3154.6,3.16989]
[1731792411448,3.10173368,3155.0,3154.6,3.16989]
[1731792411977,3.10173368,3155.0,3154.7,3.16985]
[1731792412171,2.46034607,3155.0,3154.7,3.16985]
[1731792413390,2.46034607,3155.0,3154.5,3.17006]
[1731792413721,2.46034607,3155.0,3154.6,3.16996]
[1731792414122,2.46034607,3155.0,3154.7,3.16984]
[1731792414774,2.46034607,3155.0,3154.3,3.17022]
[1731792415018,0.7841,3154.7,3154.2,3.0]
[1731792415992,3.95397,3154.7,3154.1,3.1704]
[1731792416291,0.7841,3154.7,3154.1,3.1704]
[1731792416505,0.7841,3154.7,3154.2,3.17031]
[1731792416821,0.7841,3154.7,3154.3,3.17023]
[1731792417381,0.7841,3154.7,3154.1,3.17041]
[1731792417620,0.7841,3154.7,3154.0,3.48701]
[1731792417819,0.7841,3154.7,3154.1,3.17044]
[1731792418121,3.95398,3154.7,3154.2,0.3165]
[1731792418323,4.666362,3154.7,3154.2,0.3165]
[1731792418825,3.17,3154.6,3154.2,0.3165]
[1731792419263,3.17,3154.6,3154.1,3.17044]
[1731792419411,3.17,3154.6,3153.9,3.17066]
[1731792419615,3.17014,3154.5,3153.9,3.17066]
[1731792419916,0.7841,3154.4,3153.9,3.17066]
[1731792420751,0.7841,3154.9,3154.3,3.17027]
[1731792421123,0.7841,3154.9,3154.4,3.17011]
[1731792421335,0.7841,3154.9,3154.2,0.7928]
[1731792421537,0.7841,3154.9,3154.2,3.17035]
[1731792421538,3.16983,3154.8,3154.2,3.17035]
[1731792421741,3.16983,3154.8,3154.0,3.96337]
[1731792421742,3.17,3154.6,3154.0,3.96337]
[1731792421924,3.17,3154.6,3154.0,3.17057]
[1731792422128,0.7841,3154.5,3154.0,3.17057]
[1731792422428,0.7841,3154.5,3153.8,0.7928]
[1731792422429,3.9542,3154.5,3153.9,3.0]
[1731792422632,0.7841,3154.5,3154.0,3.17049]
[1731792424059,3.17024,3154.4,3153.8,3.17077]
[1731792424564,3.17024,3154.4,3153.5,3.17107]
[1731792424565,0.712434,3154.4,3153.5,3.17107]
[1731792424765,3.17057,3154.1,3153.4,3.17117]
[1731792425056,3.17003,3154.6,3153.4,3.17117]
[1731792425057,0.8319,3153.9,3153.4,3.17117]
[1731792425216,4.00259,3153.9,3153.4,3.17117]
[1731792426157,4.00259,3153.9,3153.5,3.0]
[1731792426340,4.00259,3153.9,3153.2,6.17133]
[1731792426541,4.00259,3153.9,3153.4,3.0]
[1731792427058,3.17081,3153.8,3153.2,6.17136]
[1731792427266,3.17089,3153.7,3153.2,3.17136]
[1731792427920,4.719967,3153.9,3153.3,3.17123]
[1731792428114,1.549217,3153.9,3153.3,3.17123]
[1731792429347,4.719887,3153.9,3153.3,3.17123]
[1731792429547,4.719887,3153.9,3153.1,6.34285]
[1731792429972,0.7890507,3153.8,3153.1,3.1714]
[1731792430117,4.00278,3153.7,3153.1,3.1714]
[1731792432067,0.8319,3153.7,3153.1,3.1714]
[1731792432781,4.00285,3153.7,3153.1,3.1714]
[1731792432928,0.8319,3153.7,3152.9,3.17164]
[1731792433246,3.17098,3153.6,3153.0,3.17153]
[1731792434121,3.17115,3153.5,3152.8,6.96121]
[1731792435090,3.1713,3153.3,3152.8,3.17171]
[1731792435255,3.95188,3153.4,3152.8,3.17171]
[1731792435456,4.664183,3153.4,3152.8,3.17171]
[1731792435995,1.493003,3153.4,3152.8,3.17171]
[1731792436291,1.493003,3153.4,3152.7,3.0]
[1731792436292,6.34268,3153.3,3152.7,3.0]
[1731792436494,3.17131,3153.3,3152.8,3.17176]
[1731792437084,1.493003,3153.4,3152.9,3.17166]
[1731792437262,4.664243,3153.4,3152.7,6.1718]
[1731792437458,1.493003,3153.4,3152.8,3.17172]
[1731792437777,1.493003,3153.4,3152.9,3.17158]
[1731792438300,1.493003,3153.4,3152.8,3.17172]
[1731792438597,4.664253,3153.4,3152.8,3.17172]
[1731792438756,3.95195,3153.4,3152.8,3.17172]
[1731792439402,0.7807,3153.9,3153.3,3.17128]
[1731792439893,0.7807,3153.9,3153.4,3.17111]
[1731792440053,1.175835,3153.9,3153.4,3.17111]
[1731792440677,4.346525,3153.9,3153.2,6.34264]
[1731792440995,4.346525,3153.9,3153.3,3.17126]
[1731792441351,1.175835,3153.9,3153.2,3.17138]
[1731792441746,1.175835,3153.9,3153.6,3.17097]
[1731792441747,0.7807,3153.9,3153.6,3.17097]
[1731792441858,0.7807,3153.9,3153.6,3.17096]
[1731792442061,0.7807,3153.9,3153.4,3.17111]
[1731792442774,0.7807,3153.9,3153.5,3.17105]
[1731792442974,0.7807,3153.9,3153.6,3.17093]
[1731792443191,3.17021,3154.4,3153.6,3.17093]
[1731792443192,0.76,3154.3,3153.6,3.17093]
[1731792443401,1.377021,3154.3,3153.8,3.17077]
[1731792447284,0.76,3154.3,3153.8,3.17077]
[1731792448286,0.76,3154.3,3153.9,3.17064]